Workbook

Sheet Sheet1
A1: MMF | D1: PM Checks
A3: "X"
A5: Undulator | B5: 25
A6: Date: | B6: 2014-02-07
A7: Crew: | B7: BR-MR
A9: BUCK IN
A10: Far Value | B10: 0 | C10: PM1 X1
A11: Near Value | B11: 0 | C11: PM 4 X1
A12: 1st Far | B12: 29
A13: 1st. Near | B13: 27.239
A14: 2nd. Far | B14: 28
A15: 2nd Near | B15: 26.987
A16: Far Should Read | B16: =BuckIn(B10,B11,B12,B13,B14,B15) -> 26.64572193
A17: Near Should Read | B17: 26.64572193
A18: LOS | B18: 26.64572193
A20: Undulator
A23: 1) | B23: 2) | C23: 3) | D23: 4)
A24: 31.14 | B24: 31.142 | C24: 31.135 | D24: 31.128
A25: 1 | B25: 1 | C25: 1 | D25: 1
A26: =SUM(A24:A25) -> 32.14 | B26: =SUM(B24:B25) -> 32.142 | C26: =SUM(C24:C25) -> 32.135 | D26: =SUM(D24:D25) -> 32.128
A27: =B18 -> 26.64572193 | B27: =B18 -> 26.64572193 | C27: =B18 -> 26.64572193 | D27: =B18 -> 26.64572193
A28: =SUM(A27-A26) -> -5.494278075 | B28: =SUM(B27-B26) -> -5.496278075 | C28: =SUM(C27-C26) -> -5.489278075 | D28: =SUM(D27-D26) -> -5.482278075
A30: 5) | B30: 6) | C30: 7) | D30: 8)
A31: 21.363 | B31: 21.365 | C31: 21.363 | D31: 21.354
A32: 1 | B32: 1 | C32: 1 | D32: 1
A33: =SUM(A31:A32) -> 22.363 | B33: =SUM(B31:B32) -> 22.365 | C33: =SUM(C31:C32) -> 22.363 | D33: =SUM(D31:D32) -> 22.354
A34: =B18 -> 26.64572193 | B34: =B18 -> 26.64572193 | C34: =B18 -> 26.64572193 | D34: =B18 -> 26.64572193
A35: =SUM(A34-A33) -> 4.282721925 | B35: =SUM(B34-B33) -> 4.280721925 | C35: =SUM(C34-C33) -> 4.282721925 | D35: =SUM(D34-D33) -> 4.291721925
B38: Reference | C38: Block
A40: A) | B40: B) | C40: C) | D40: D)
A41: 32.69 | B41: 28.156 | C41: 26.398 | D41: 26.398
A42: 1 | B42: 1 | C42: 1 | D42: 1
A43: =SUM(A41:A42) -> 33.69 | B43: =SUM(B41:B42) -> 29.156 | C43: =SUM(C41:C42) -> 27.398 | D43: =SUM(D41:D42) -> 27.398
A44: =B18 -> 26.64572193 | B44: =B18 -> 26.64572193 | C44: =B18 -> 26.64572193 | D44: =B18 -> 26.64572193
A45: =SUM(A44-A43) -> -7.044278075 | B45: =SUM(B44-B43) -> -2.510278075 | C45: =SUM(C44-C43) -> -0.7522780749 | D45: =SUM(D44-D43) -> -0.7522780749
A51: MMF | D51: PM Checks
A53: "X"
A55: =B18 -> 26.64572193 | B55: LOS
A56: Undulator | B56: =B5 -> 25
A57: Date: | B57: =B6 -> 2014-02-07
A58: Crew: | B58: =B7 -> BR-MR
B61: PM4
A63: X1) Buck In | B63: Y1) | C63: Y2)
B64: 29.244 | C64: 29.247
B65: 1 | C65: 1
B66: =SUM(B64:B65) -> 30.244 | C66: =SUM(C64:C65) -> 30.247
B67: =B18 -> 26.64572193 | C67: =B18 -> 26.64572193
A68: 0 | B68: =SUM(B67-B66) -> -3.598278075 | C68: =SUM(C67-C66) -> -3.601278075
B71: PM3
A73: X1) | B73: Y1) | C73: Y2)
A74: 27.542 | B74: 31.138 | C74: 31.139
A75: 1 | B75: 1 | C75: 1
A76: =SUM(A74:A75) -> 28.542 | B76: =SUM(B74:B75) -> 32.138 | C76: =SUM(C74:C75) -> 32.139
A77: =B18 -> 26.64572193 | B77: =B18 -> 26.64572193 | C77: =B18 -> 26.64572193
A78: =SUM(A77-A76) -> -1.896278075 | B78: =SUM(B77-B76) -> -5.492278075 | C78: =SUM(C77-C76) -> -5.493278075
B81: PM 2
A82: X1) | B82: Y1) | C82: Y2)
A83: 27.529 | B83: 31.125 | C83: 31.127
A84: 1 | B84: 1 | C84: 1
A85: =SUM(A83:A84) -> 28.529 | B85: =SUM(B83:B84) -> 32.125 | C85: =SUM(C83:C84) -> 32.127
A86: =B18 -> 26.64572193 | B86: =B18 -> 26.64572193 | C86: =B18 -> 26.64572193
A87: =SUM(A86-A85) -> -1.883278075 | B87: =SUM(B86-B85) -> -5.479278075 | C87: =SUM(C86-C85) -> -5.481278075
B90: PM1
A91: X1) Buck In | B91: Y1) | C91: Y2)
B92: 29.241 | C92: 29.24
B93: 1 | C93: 1
B94: =SUM(B92:B93) -> 30.241 | C94: =SUM(C92:C93) -> 30.24
B95: =B18 -> 26.64572193 | C95: =B18 -> 26.64572193
A96: 0 | B96: =SUM(B95-B94) -> -3.595278075 | C96: =SUM(C95-C94) -> -3.594278075
A101: MMF | D101: PM Checks
A103: "Y" | C103: PM4Y1 | D103: PM1Y1
C104: 9.727 | D104: 9.735
C105: 1 | D105: 1
A106: Undulator | B106: =B5 -> 25 | C106: =SUM(C104+C105) -> 10.727 | D106: =SUM(D104+D105) -> 10.735
A107: Date: | B107: =B6 -> 2014-02-07
A108: Crew: | B108: =B7 -> BR-MR
C109: HI = | D109: =AVERAGE(C106,D106) -> 10.731
A111: PM4 | C111: PM3
A113: Y1) | B113: X1) | C113: Y2) | D113: X1
A114: =C104 -> 9.727 | B114: 13.335 | C114: 9.73 | D114: 13.331
A115: 1 | B115: 1 | C115: 1 | D115: 1
A116: =SUM(A114:A115) -> 10.727 | B116: =SUM(B114:B115) -> 14.335 | C116: =SUM(C114:C115) -> 10.73 | D116: =SUM(D114:D115) -> 14.331
A117: =D109 -> 10.731 | B117: =D109 -> 10.731 | C117: =D109 -> 10.731 | D117: =D109 -> 10.731
A118: =SUM(A117-A116) -> 0.004 | B118: =SUM(B117-B116) -> -3.604 | C118: =SUM(C117-C116) -> 0.001 | D118: =SUM(D117-D116) -> -3.6
A121: PM2 | C121: PM1
A123: Y1) | B123: X1) | C123: Y1) | D123: X1)
A124: 9.734 | B124: 13.333 | C124: =D104 -> 9.735 | D124: 13.338
A125: 1 | B125: 1 | C125: 1 | D125: 1
A126: =SUM(A124:A125) -> 10.734 | B126: =SUM(B124:B125) -> 14.333 | C126: =SUM(C124:C125) -> 10.735 | D126: =SUM(D124:D125) -> 14.338
A127: =D109 -> 10.731 | B127: =D109 -> 10.731 | C127: =D109 -> 10.731 | D127: =D109 -> 10.731
A128: =SUM(A127-A126) -> -0.003 | B128: =SUM(B127-B126) -> -3.602 | C128: =SUM(C127-C126) -> -0.004 | D128: =SUM(D127-D126) -> -3.607
A135: Top Of Gage Block | C135: Probe Location in (X)
A137: 15.126 | C137: -5.464 | D137: LOS
A138: =D109 -> 10.731 | C138: 0.043 | D138: Mic To Plus Edge
A139: =SUM(A138-A137) -> -4.395 | C139: =SUM(C137+C138) -> -5.421
C140: -0.039
C141: =(C139+C140) -> -5.46 | D141: Probe Location
A151: MMF | D151: PM Checks
A153: "Y"
A155: Undulator | B155: =B5 -> 25
A156: Date: | B156: 2014-02-07
A157: Crew: | B157: =B7 -> BR-MR
A160: HI = | B160: =D109 -> 10.731
A162: Undulator
A164: 1) | B164: 2) | C164: 3) | D164: 4)
A165: 6.249 | B165: 6.253 | C165: 6.256 | D165: 6.254
A166: 1 | B166: 1 | C166: 1 | D166: 1
A167: =SUM(A165:A166) -> 7.249 | B167: =SUM(B165:B166) -> 7.253 | C167: =SUM(C165:C166) -> 7.256 | D167: =SUM(D165:D166) -> 7.254
A168: =D109 -> 10.731 | B168: =D109 -> 10.731 | C168: =D109 -> 10.731 | D168: =D109 -> 10.731
A169: =SUM(A168-A167) -> 3.482 | B169: =SUM(B168-B167) -> 3.478 | C169: =SUM(C168-C167) -> 3.475 | D169: =SUM(D168-D167) -> 3.477
A172: 5) | B172: 6) | C172: 7) | D172: 8)
A173: 13.329 | B173: 13.326 | C173: 13.333 | D173: 13.332
A174: 1 | B174: 1 | C174: 1 | D174: 1
A175: =SUM(A173+A174) -> 14.329 | B175: =SUM(B173+B174) -> 14.326 | C175: =SUM(C173+C174) -> 14.333 | D175: =SUM(D173+D174) -> 14.332
A176: =D109 -> 10.731 | B176: =D109 -> 10.731 | C176: =D109 -> 10.731 | D176: =D109 -> 10.731
A177: =SUM(A176-A175) -> -3.598 | B177: =SUM(B176-B175) -> -3.595 | C177: =SUM(C176-C175) -> -3.602 | D177: =SUM(D176-D175) -> -3.601
A181: Reference Block
A183: A) | B183: B) | C183: C) | D183: D)
A184: 9.971 | C184: 12.116 | D184: 15.197
A185: 1 | C185: 1 | D185: 1
A186: =SUM(A184+A185) -> 10.971 | C186: =SUM(C184+C185) -> 13.116 | D186: =SUM(D184+D185) -> 16.197
A187: =D109 -> 10.731 | C187: =D109 -> 10.731 | D187: =D109 -> 10.731
A188: =SUM(A187-A186) -> -0.24 | B188: 0 | C188: =SUM(C187-C186) -> -2.385 | D188: =SUM(D187-D186) -> -5.466
A191: Flats
A193: U/S | C193: D/S
A194: (+) | B194: (-) | C194: (+) | D194: (-)
A195: 9.014 | B195: 9.014 | C195: 9.017 | D195: 9.017
A196: =D109 -> 10.731 | B196: =D109 -> 10.731 | C196: =D109 -> 10.731 | D196: =D109 -> 10.731
A197: =SUM(A196-A195) -> 1.717 | B197: =SUM(B196-B195) -> 1.717 | C197: =SUM(C196-C195) -> 1.714 | D197: =SUM(D196-D195) -> 1.714

Sheet Sheet2
A2: Undulator | C2: =Sheet1!B5 -> 25
A3: Date | C3: =Sheet1!B6 -> 2014-02-07
A4: Crew | C4: =Sheet1!B7 -> BR-MR
A7: Undulator Values
A9: TB | B9: Y (in) | C9: Y (mm) | F9: TB | G9: X (in) | H9: X (mm)
A10: 1 | B10: =Sheet1!A169 -> 3.482 | C10: =B10*25.4 -> 88.4428 | F10: 5 | G10: =Sheet1!A35 -> 4.282721925 | H10: =G10*25.4 -> 108.7811369
A11: 2 | B11: =Sheet1!B169 -> 3.478 | C11: =B11*25.4 -> 88.3412 | F11: 6 | G11: =Sheet1!B35 -> 4.280721925 | H11: =G11*25.4 -> 108.7303369
A12: 3 | B12: =Sheet1!C169 -> 3.475 | C12: =B12*25.4 -> 88.265 | F12: 7 | G12: =Sheet1!C35 -> 4.282721925 | H12: =G12*25.4 -> 108.7811369
A13: 4 | B13: =Sheet1!D169 -> 3.477 | C13: =B13*25.4 -> 88.3158 | F13: 8 | G13: =Sheet1!D35 -> 4.291721925 | H13: =G13*25.4 -> 109.0097369
A16: PM Values
C18: Upstream | E18: (PM 3) | G18: Checks
A19: TB | B19: X (in) | C19: Y (in) | D19: X (mm) | E19: Y (mm) | G19: X (mm) | H19: Y (mm)
A20: Y2 | B20: =Sheet1!C78 -> -5.493278075 | C20: =Sheet1!C118 -> 0.001 | D20: =B20*25.4 -> -139.5292631 | E20: =C20*25.4 -> 0.0254 | G20: =H10-D21 -> 156.9466 | H20: =C10-E20 -> 88.4174
A21: X1 | B21: =Sheet1!A78 -> -1.896278075 | C21: =Sheet1!D118 -> -3.6 | D21: =B21*25.4 -> -48.1654631 | E21: =C21*25.4 -> -91.44
A22: Y1 | B22: =Sheet1!B78 -> -5.492278075 | D22: =B22*25.4 -> -139.5038631
C24: Downstream | E24: (PM 2) | G24: Checks
A25: TB | B25: X (in) | C25: Y (in) | D25: X (mm) | E25: Y (mm) | G25: X (mm) | H25: Y (mm)
A26: Y1 | B26: =Sheet1!B87 -> -5.479278075 | C26: =Sheet1!A128 -> -0.003 | D26: =B26*25.4 -> -139.1736631 | E26: =C26*25.4 -> -0.0762 | G26: =H13-D27 -> 156.845 | H26: =C13-E26 -> 88.392
A27: X1 | B27: =Sheet1!A87 -> -1.883278075 | C27: =Sheet1!B128 -> -3.602 | D27: =B27*25.4 -> -47.8352631 | E27: =C27*25.4 -> -91.4908
A28: Y2 | B28: =Sheet1!C87 -> -5.481278075 | C28: \ | D28: =B28*25.4 -> -139.2244631
B33: Probe | F33: Flats
B35: X (in) | C35: X (mm) | F35: Y(in) | G35: Y(mm)
B36: =Sheet1!C141 -> -5.46 | C36: =B36*25.4 -> -138.684 | E36: US + | F36: =Sheet1!A197 -> 1.717 | G36: =F36*25.4 -> 43.6118
E37: US - | F37: =Sheet1!B197 -> 1.717 | G37: =F37*25.4 -> 43.6118
E38: DS + | F38: =Sheet1!C197 -> 1.714 | G38: =F38*25.4 -> 43.5356
C39: Top of Gage Block | E39: DS - | F39: =Sheet1!D197 -> 1.714 | G39: =F39*25.4 -> 43.5356
B41: Y (in) | C41: Y (mm)
B42: =Sheet1!A139 -> -4.395 | C42: =B42*25.4 -> -111.633

Sheet Sheet3
A2: Undulator | C2: 13
A3: Date | C3: =Sheet1!B6 -> 2014-02-07
A4: Crew | C4: MR,BR
C7: Undulator Values
A9: TB | B9: X (in) | C9: Y (in) | D9: X (mm) | E9: Y (mm) | G9: Probe
A10: 1 | B10: =Sheet1!A28 -> -5.494278075 | C10: =Sheet1!A169 -> 3.482 | D10: =SUM(B10*25.4) -> -139.5546631 | E10: =SUM(C10*25.4) -> 88.4428
A11: 2 | B11: =Sheet1!B28 -> -5.496278075 | C11: =Sheet1!B169 -> 3.478 | D11: =SUM(B11*25.4) -> -139.6054631 | E11: =SUM(C11*25.4) -> 88.3412 | G11: X (in) | H11: X (mm)
A12: 3 | B12: =Sheet1!C28 -> -5.489278075 | C12: =Sheet1!C169 -> 3.475 | D12: -139.4276631 | E12: 88.265 | G12: =Sheet1!C141 -> -5.46 | H12: =SUM(G12*25.4) -> -138.684
A13: 4 | B13: =Sheet1!D28 -> -5.482278075 | C13: =Sheet1!D169 -> 3.477 | D13: -139.2498631 | E13: 88.3158
A14: 5 | B14: =Sheet1!A35 -> 4.282721925 | C14: =Sheet1!A177 -> -3.598 | D14: 108.7811369 | E14: -91.3892
A15: 6 | B15: =Sheet1!B35 -> 4.280721925 | C15: =Sheet1!B177 -> -3.595 | D15: 108.7303369 | E15: -91.313 | G15: Top of Gage Block
A16: 7 | B16: =Sheet1!C35 -> 4.282721925 | C16: =Sheet1!C177 -> -3.602 | D16: 108.7811369 | E16: -91.4908
A17: 8 | B17: =Sheet1!D35 -> 4.291721925 | C17: =Sheet1!D177 -> -3.601 | D17: 109.0097369 | E17: -91.4654 | G17: Y (in) | H17: Y (mm)
G18: =Sheet1!A139 -> -4.395 | H18: =SUM(G18*25.4) -> -111.633
C19: Undulator PM Values
C21: Upstream | E21: (PM 3)
A22: TB | B22: X (in) | C22: Y (in) | D22: X (mm) | E22: Y (mm) | G22: Flats
A23: Y2 | B23: =Sheet1!A78 -> -1.896278075 | C23: =Sheet1!C118 -> 0.001 | D23: =SUM(B23*25.4) -> -48.1654631 | E23: =SUM(C23*25.4) -> 0.0254
A24: X1 | B24: =Sheet1!A78 -> -1.896278075 | C24: =Sheet1!D118 -> -3.6 | D24: =SUM(B24*25.4) -> -48.1654631 | E24: =SUM(C24*25.4) -> -91.44 | H24: Y(in) | I24: Y(mm)
A25: Y1 | B25: =Sheet1!B78 -> -5.492278075 | D25: =SUM(B25*25.4) -> -139.5038631 | G25: US + | H25: =Sheet1!A197 -> 1.717 | I25: =SUM(H25*25.4) -> 43.6118
G26: US - | H26: =Sheet1!B197 -> 1.717 | I26: =SUM(H26*25.4) -> 43.6118
C27: Downstream | E27: (PM 2) | G27: DS + | H27: =Sheet1!C197 -> 1.714 | I27: =SUM(H27*25.4) -> 43.5356
A28: TB | B28: X (in) | C28: Y (in) | D28: X (mm) | E28: Y (mm) | G28: DS - | H28: =Sheet1!D197 -> 1.714 | I28: =SUM(H28*25.4) -> 43.5356
A29: Y1 | B29: =Sheet1!B87 -> -5.479278075 | C29: =Sheet1!A128 -> -0.003 | D29: =SUM(B29*25.4) -> -139.1736631 | E29: =SUM(C29*25.4) -> -0.0762
A30: X1 | B30: =Sheet1!A87 -> -1.883278075 | C30: =Sheet1!B128 -> -3.602 | D30: =SUM(B30*25.4) -> -47.8352631 | E30: =SUM(C30*25.4) -> -91.4908
A31: Y2 | B31: =Sheet1!C87 -> -5.481278075 | D31: =SUM(B31*25.4) -> -139.2244631
C33: Ref. PM Values
C35: Upstream | E35: (PM 4)
A36: TB | B36: X (in) | C36: Y (in) | D36: X (mm) | E36: Y (mm)
A37: Y1 | B37: =Sheet1!B68 -> -3.598278075 | C37: =Sheet1!A118 -> 0.004 | D37: =SUM(B37*25.4) -> -91.3962631 | E37: =SUM(C37*25.4) -> 0.1016
A38: X1 | B38: 0 | C38: =Sheet1!B118 -> -3.604 | D38: 0 | E38: =SUM(C38*25.4) -> -91.5416
A39: Y2 | B39: =Sheet1!C68 -> -3.601278075 | D39: =SUM(B39*25.4) -> -91.4724631
C41: Downstream | E41: (PM 1)
A42: TB | B42: X (in) | C42: Y (in) | D42: X (mm) | E42: Y (mm)
A43: Y1 | B43: =Sheet1!B96 -> -3.595278075 | C43: =Sheet1!C128 -> -0.004 | D43: =SUM(B43*25.4) -> -91.3200631 | E43: =SUM(C43*25.4) -> -0.1016
A44: X1 | B44: 0 | C44: =Sheet1!D128 -> -3.607 | D44: 0 | E44: =SUM(C44*25.4) -> -91.6178
A45: Y2 | B45: =Sheet1!C96 -> -3.594278075 | D45: =SUM(B45*25.4) -> -91.2946631
C47: Ref. Block
A48: TB | B48: X (in) | C48: Y (in) | D48: X (mm) | E48: Y (mm)
A49: A | B49: =Sheet1!A45 -> -7.044278075 | C49: =Sheet1!A188 -> -0.24 | D49: =SUM(B49*25.4) -> -178.9246631 | E49: =SUM(C49*25.4) -> -6.096
A50: B | B50: =Sheet1!B45 -> -2.510278075 | D50: =SUM(B50*25.4) -> -63.7610631
A51: C | B51: =Sheet1!C45 -> -0.7522780749 | C51: =Sheet1!C188 -> -2.385 | D51: =SUM(B51*25.4) -> -19.1078631 | E51: =SUM(C51*25.4) -> -60.579
A52: D | B52: =Sheet1!D45 -> -0.7522780749 | C52: =Sheet1!D188 -> -5.466 | D52: =SUM(B52*25.4) -> -19.1078631 | E52: =SUM(C52*25.4) -> -138.8364
